fUST/lending_fUST_20241227
["ID","MTS","AMOUNT","RATE_DAILY","PERIOD"]
[346721121,1735241450902,-151.0,0.00017513,2]
[346721122,1735241450912,-151.0,0.00017513,2]
[346721123,1735241450922,-151.0,0.00017513,2]
[346721124,1735241450933,-151.0,0.00017513,2]
[346721125,1735241450943,-151.0,0.00017513,2]
[346721126,1735241450952,-464.89,0.00017513,2]
[346721127,1735241450963,-189.57,0.00017513,2]
[346721128,1735241450973,-817.04,0.00017513,2]
[346721129,1735241450983,-166.320661,0.00017513,2]
[346721130,1735241450993,-166.320661,0.00017513,2]
[346721131,1735241451002,-500.0,0.00017513,2]
[346721132,1735241451012,-500.0,0.00017513,2]
[346721133,1735241451021,-500.0,0.00017513,2]
[346721134,1735241451030,-569.53,0.00017513,2]
[346721135,1735241451040,-164.196816,0.00017513,2]
[346721136,1735241451049,-151.375624,0.00017513,2]
[346721137,1735241451058,-151.375624,0.00017513,2]
[346721138,1735241451067,-151.0,0.00017514,2]
[346721139,1735241451077,-151.0,0.00017514,2]
[346721140,1735241451086,-151.0,0.00017514,2]
[346721141,1735241451097,-151.0,0.00017514,2]
[346721142,1735241451107,-151.739427,0.00017514,2]
[346721143,1735241451115,-500.0,0.00017514,2]
[346721144,1735241451125,-500.0,0.00017514,2]
[346721145,1735241451135,-151.0,0.00017514,2]
[346721146,1735241451145,-4470.5,0.00017514,2]
[346721147,1735241451154,-431.227777,0.00017514,2]
[346721148,1735241451164,-431.227777,0.00017514,2]
[346721149,1735241451173,-151.0,0.00017514,2]
[346721150,1735241451182,-605.5,0.00017514,2]
[346721151,1735241451191,-151.0,0.00017516,2]
[346721152,1735241451201,-151.0,0.00017516,2]
[346721153,1735241451211,-151.0,0.00017516,2]
[346721154,1735241451220,-151.0,0.00017516,2]
[346721155,1735241451230,-151.0,0.00017516,2]
[346721156,1735241451239,-151.0,0.00017516,2]
[346721157,1735241451248,-151.0,0.00017516,2]
[346721158,1735241451258,-151.0,0.00017516,2]
[346721159,1735241451267,-337.56586032,0.00017516,2]
[346721160,1735241451279,-151.0,0.00017516,2]
[346721161,1735241451289,-151.0,0.00017516,2]
[346721162,1735241451298,-151.0,0.00017516,2]
[346721163,1735241451307,-448.878934,0.00017516,2]
[346721164,1735241451316,-448.878934,0.00017516,2]
[346721165,1735241451326,-230.921941,0.00017516,2]
[346721166,1735241451335,-230.921941,0.00017516,2]
[346721167,1735241451345,-3420.74,0.00017516,2]
[346721168,1735241451354,-270.98943915,0.00017517,2]
[346721169,1735241451364,-500.0,0.00017518,2]
[346721170,1735241451373,-151.0,0.00017519,2]
[346721171,1735241451383,-151.0,0.00017519,2]
[346721172,1735241451393,-279.296123,0.00017519,2]
[346721173,1735241451403,-267.325243,0.00017519,2]
[346721174,1735241451413,-267.325243,0.00017519,2]
[346721175,1735241451422,-195.77549,0.00017519,2]
[346721176,1735241451433,-195.77549,0.00017519,2]
[346721177,1735241451443,-151.0,0.00017519,2]
[346721178,1735241451452,-389.504134,0.00017519,2]
[346721179,1735241451465,-389.504134,0.00017519,2]
[346721180,1735241451475,-151.0,0.00017519,2]
[346721181,1735241451487,-599.955409,0.00017519,2]
[346721182,1735241451497,-599.955409,0.00017519,2]
[346721183,1735241451507,-203.377828,0.00017519,2]
[346721184,1735241451517,-203.377828,0.00017519,2]
[346721185,1735241451526,-851.339505,0.00017519,2]
[346721186,1735241451536,-851.339505,0.00017519,2]
[346721187,1735241451548,-521.129301,0.00017519,2]
[346721188,1735241451558,-521.129301,0.00017519,2]
[346721189,1735241451569,-151.0,0.00017519,2]
[346721190,1735241451580,-151.0,0.00017523,2]
[346721191,1735241451591,-231.3498518,0.00017559,2]
[346721192,1735241451602,-666.0,0.000176,2]
[346721193,1735241451612,-230.551342,0.000176,2]
[346721194,1735241451623,-230.551342,0.000176,2]
[346721195,1735241451633,-3431.87661942,0.00017679,2]
[346721196,1735241451643,-160.0,0.00017699,2]
[346721197,1735241451652,-637.18315025,0.00017699,2]
[346721198,1735241451662,-165.41856636,0.00017699,2]
[346721199,1735241451671,-70180.46821811,0.000177,2]
[346721200,1735241451680,-151.0,0.000177,2]
[346721201,1735241451690,-151.0,0.000177,2]
[346721202,1735241451699,-151.0,0.000177,2]
[346721203,1735241451711,-151.0,0.000177,2]
[346721204,1735241451720,-151.0,0.000177,2]
[346721205,1735241451730,-190.64568,0.000177,2]
[346721206,1735241451739,-151.0,0.000177,2]
[346721207,1735241451748,-151.0,0.000177,2]
[346721208,1735241451757,-151.0,0.000177,2]
[346721209,1735241451767,-150.14,0.000177,2]
[346721210,1735241451777,-151.0,0.000177,2]
[346721211,1735241451786,-151.0,0.000177,2]
[346721212,1735241451795,-151.0,0.000177,2]
[346721213,1735241451805,-151.0,0.000177,2]
[346721214,1735241451814,-151.0,0.000177,2]
[346721215,1735241451823,-151.0,0.000177,2]
[346721216,1735241451833,-151.0,0.000177,2]
[346721217,1735241451843,-166.320661,0.000177,2]
[346721218,1735241451853,-166.320661,0.000177,2]
[346721219,1735241451863,-151.0,0.000177,2]
[346721220,1735241451873,-151.0,0.000177,2]
[346721221,1735241451882,-151.0,0.000177,2]
[346721222,1735241451893,-448.878934,0.000177,2]
[346721223,1735241451908,-448.878934,0.000177,2]
[346721224,1735241451917,-500.0,0.000177,2]
[346721225,1735241451927,-500.0,0.000177,2]
[346721226,1735241451936,-500.0,0.000177,2]
[346721227,1735241451946,-267.325243,0.000177,2]
[346721228,1735241451956,-267.325243,0.000177,2]
[346721229,1735241451965,-195.77549,0.000177,2]
[346721230,1735241451976,-230.921941,0.000177,2]
[346721231,1735241451986,-195.77549,0.000177,2]
[346721232,1735241451995,-230.921941,0.000177,2]
[346721233,1735241452005,-389.504134,0.000177,2]
[346721234,1735241452014,-389.504134,0.000177,2]
[346721235,1735241452024,-151.0,0.000177,2]
[346721236,1735241452034,-599.955409,0.000177,2]
[346721237,1735241452043,-599.955409,0.000177,2]
[346721238,1735241452051,-203.377828,0.000177,2]
[346721239,1735241452061,-203.377828,0.000177,2]
[346721240,1735241452071,-230.551342,0.000177,2]
[346721241,1735241452080,-230.551342,0.000177,2]
[346721242,1735241452089,-851.339505,0.000177,2]
[346721243,1735241452099,-851.339505,0.000177,2]
[346721244,1735241452108,-151.0,0.000177,2]
[346721245,1735241452118,-431.227777,0.000177,2]
[346721246,1735241452127,-431.227777,0.000177,2]
[346721247,1735241452137,-150.14,0.000177,2]
[346721248,1735241452148,-150.14,0.000177,2]
[346721249,1735241452157,-500.0,0.000177,2]
[346721250,1735241452166,-500.0,0.000177,2]
[346721251,1735241452176,-150.14,0.000177,2]
[346721252,1735241452185,-150.14,0.000177,2]
[346721253,1735241452194,-222.65776,0.000177,2]
[346721254,1735241452204,-151.375624,0.000177,2]
[346721255,1735241452217,-151.375624,0.000177,2]
[346721256,1735241452227,-521.129301,0.000177,2]
[346721257,1735241452237,-521.129301,0.000177,2]
[346721258,1735241452246,-151.0,0.000177,2]
[346721259,1735241452255,-503.51640862,0.00017773,2]
[346721260,1735241452265,-500.0,0.00017784,2]
[346721261,1735241452275,-5861.06,0.00017784,2]
[346721262,1735241452284,-2812.11,0.00017784,2]
[346721263,1735241452293,-1002.87,0.00017784,2]
[346721264,1735241452303,-500.0,0.00017784,2]
[346721265,1735241452312,-500.0,0.00017785,2]
[346721266,1735241452321,-500.0,0.00017785,2]
[346721267,1735241452330,-500.0,0.00017785,2]
[346721268,1735241452339,-573.02,0.00017785,2]
[346721269,1735241452349,-508.01,0.00017785,2]
[346721270,1735241452358,-973.52,0.00017785,2]
[346721271,1735241452367,-597.43,0.00017785,2]
[346721272,1735241452377,-500.0,0.00017785,2]
[346721273,1735241452386,-500.0,0.00017785,2]
[346721274,1735241452395,-513.12,0.00017785,2]
[346721275,1735241452405,-881.92,0.00017785,2]
[346721276,1735241452415,-1210.76,0.00017785,2]
[346721277,1735241452424,-269.464211,0.00017785,2]
[346721278,1735241452434,-555.22,0.00017785,2]
[346721279,1735241452444,-17270.21,0.00017785,2]
[346721280,1735241452453,-740.19,0.00017785,2]
[346721281,1735241452463,-822.86,0.00017785,2]
[346721282,1735241452472,-273.22,0.00017785,2]
[346721283,1735241452481,-431.227777,0.00017785,2]
[346721284,1735241452491,-664.99,0.00017785,2]
[346721285,1735241452500,-431.227777,0.00017785,2]
[346721286,1735241452509,-500.0,0.00017785,2]
[346721287,1735241452518,-500.0,0.00017785,2]
[346721288,1735241452527,-500.0,0.00017785,2]
[346721289,1735241452536,-500.0,0.00017785,2]
[346721290,1735241452545,-500.0,0.00017785,2]
[346721291,1735241452554,-500.0,0.00017785,2]
[346721292,1735241452563,-151.375624,0.00017785,2]
[346721293,1735241452572,-151.375624,0.00017785,2]
[346721294,1735241452581,-560.97,0.00017785,2]
[346721295,1735241452590,-623.85,0.00017785,2]
[346721296,1735241452599,-521.129301,0.00017785,2]
[346721297,1735241452608,-521.129308,0.00017785,2]
[346721298,1735241452617,-197.31076,0.00017785,2]
[346721299,1735241452626,-160.0,0.00017785,2]
[346721300,1735241452636,-155.323138,0.00017786,2]
[346721301,1735241452645,-151.0,0.00017786,2]
[346721302,1735241452653,-151.0,0.00017786,2]
[346721303,1735241452662,-430.11,0.00017786,2]
[346721304,1735241452671,-151.0,0.00017786,2]
[346721305,1735241452680,-166.320661,0.00017786,2]
[346721306,1735241452689,-166.320661,0.00017786,2]
[346721307,1735241452698,-151.0,0.00017786,2]
[346721308,1735241452709,-151.0,0.00017786,2]
[346721309,1735241452719,-199.342738,0.00017786,2]
[346721310,1735241452729,-448.878934,0.00017786,2]
[346721311,1735241452738,-448.878934,0.00017786,2]
[346721312,1735241452747,-722.41,0.00017786,2]
[346721313,1735241452764,-267.325243,0.00017786,2]
[346721314,1735241452774,-267.325243,0.00017786,2]
[346721315,1735241452783,-500.0,0.00017786,2]
[346721316,1735241452797,-195.77549,0.00017786,2]
[346721317,1735241452810,-230.921941,0.00017786,2]
[346721318,1735241452819,-631.61,0.00017786,2]
[346721319,1735241452829,-195.77549,0.00017786,2]
[346721320,1735241452838,-230.921941,0.00017786,2]
[346721321,1735241452847,-389.504134,0.00017786,2]
[346721322,1735241452857,-500.0,0.00017786,2]
[346721323,1735241452866,-389.504134,0.00017786,2]
[346721324,1735241452876,-500.0,0.00017786,2]
[346721325,1735241452885,-286.631346,0.00017786,2]
[346721326,1735241452895,-599.955409,0.00017786,2]
[346721327,1735241452908,-599.955409,0.00017786,2]
[346721328,1735241452917,-203.377828,0.00017786,2]
[346721329,1735241452927,-203.377828,0.00017786,2]
[346721330,1735241452939,-230.551342,0.00017786,2]
[346721331,1735241452953,-230.551342,0.00017786,2]
[346721332,1735241452965,-851.339505,0.00017786,2]
[346721333,1735241452974,-851.339505,0.00017786,2]
[346721334,1735241452984,-500.0,0.00017786,2]
[346721335,1735241452994,-932.57,0.00017786,2]
[346721336,1735241453003,-500.0,0.00017786,2]
[346721337,1735241453013,-1418.3,0.00017786,2]
[346721338,1735241453023,-151.0,0.00017787,2]
[346721339,1735241453032,-151.0,0.00017787,2]
[346721340,1735241453122,-151.0,0.00017787,2]
[346721341,1735241453131,-158.069946,0.00017787,2]
[346721342,1735241453141,-817.04,0.00017787,2]
[346721343,1735241453151,-500.0,0.00017787,2]
[346721344,1735241453160,-500.0,0.00017787,2]
[346721345,1735241453170,-267.325243,0.00017787,2]
[346721346,1735241453179,-267.325251,0.00017787,2]
[346721347,1735241453188,-195.77549,0.00017787,2]
[346721348,1735241453197,-230.921941,0.00017787,2]
[346721349,1735241453207,-195.775499,0.00017787,2]
[346721350,1735241453217,-230.921941,0.00017787,2]
[346721351,1735241453226,-569.53,0.00017787,2]
[346721352,1735241453235,-389.504134,0.00017787,2]
[346721353,1735241453245,-389.504124,0.00017787,2]
[346721354,1735241453255,-599.955409,0.00017787,2]
[346721355,1735241453264,-599.955415,0.00017787,2]
[346721356,1735241453274,-203.377828,0.00017787,2]
[346721357,1735241453283,-203.377819,0.00017787,2]
[346721358,1735241453293,-230.551342,0.00017787,2]
[346721359,1735241453303,-230.551332,0.00017787,2]
[346721360,1735241453312,-851.339505,0.00017787,2]
[346721361,1735241453322,-851.339507,0.00017787,2]
[346721362,1735241453331,-431.227777,0.00017787,2]
[346721363,1735241453340,-431.2277865,0.00017787,2]
[346721364,1735241453350,-151.375624,0.00017787,2]
[346721365,1735241453359,-151.375615,0.00017787,2]
[346721366,1735241453369,-154.178702,0.00017788,2]
[346721367,1735241453379,-151.0,0.00017788,2]
[346721368,1735241453388,-151.0,0.00017788,2]
[346721369,1735241453397,-500.0,0.00017788,2]
[346721370,1735241453407,-602.16,0.00017788,2]
[346721371,1735241453416,-166.320661,0.00017788,2]
[346721372,1735241453426,-166.320661,0.00017788,2]
[346721373,1735241453435,-4470.5,0.00017788,2]
[346721374,1735241453445,-605.5,0.00017788,2]
[346721375,1735241453455,-231.3498518,0.00017789,2]
[346721376,1735241453466,-3250.50224535,0.00017789,2]
[346721377,1735241453475,-151.0,0.0001779,2]
[346721378,1735241453484,-151.0,0.0001779,2]
[346721379,1735241453493,-151.0,0.0001779,2]
[346721380,1735241453503,-151.0,0.0001779,2]
[346721381,1735241453512,-151.0,0.0001779,2]
[346721382,1735241453522,-151.0,0.0001779,2]
[346721383,1735241453531,-297.412884,0.0001779,2]
[346721384,1735241453541,-151.0,0.0001779,2]
[346721385,1735241453551,-448.878934,0.0001779,2]
[346721386,1735241453561,-448.878934,0.0001779,2]
[346721387,1735241453570,-3420.74,0.0001779,2]
[346721388,1735241453580,-160.0,0.00017799,2]
[346721389,1735241453589,-1635.57866446,0.000178,2]
[346721390,1735241453599,-1635.57866446,0.000178,2]
[346721391,1735241453608,-1635.57866446,0.000178,2]
[346721392,1735241453617,-1635.57866446,0.000178,2]
[346721393,1735241453627,-1635.57866446,0.000178,2]
[346721394,1735241453636,-1635.57866446,0.000178,2]
[346721395,1735241453646,-1635.57866446,0.000178,2]
[346721396,1735241453656,-1635.57866446,0.000178,2]
[346721397,1735241453666,-1635.57866446,0.000178,2]
[346721398,1735241453675,-1635.57866446,0.000178,2]
[346721399,1735241453684,-1635.57866446,0.000178,2]
[346721400,1735241453694,-1635.57866446,0.000178,2]
[346721401,1735241453703,-1635.57866446,0.000178,2]
[346721402,1735241453715,-1635.57866446,0.000178,2]
[346721403,1735241453725,-1635.57866446,0.000178,2]
[346721404,1735241453734,-1635.57866446,0.000178,2]
[346721405,1735241453743,-1635.57866446,0.000178,2]
[346721406,1735241453753,-1635.57866446,0.000178,2]
[346721407,1735241453763,-1635.57866446,0.000178,2]
[346721408,1735241453772,-1635.57,0.000178,2]
[346721409,1735241453781,-970.77383062,0.000178,2]
[346721410,1735241453792,-970.77383062,0.000178,2]
[346721411,1735241453802,-970.77383062,0.000178,2]
[346721412,1735241453811,-970.77383062,0.000178,2]
[346721413,1735241453820,-970.77383062,0.000178,2]
[346721414,1735241453830,-970.77383062,0.000178,2]
[346721415,1735241453839,-970.77383062,0.000178,2]
[346721416,1735241453849,-970.77383062,0.000178,2]
[346721417,1735241453859,-970.77383062,0.000178,2]
[346721418,1735241453868,-970.77383062,0.000178,2]
[346721419,1735241453877,-970.77383062,0.000178,2]
[346721420,1735241453887,-970.77383062,0.000178,2]
[346721421,1735241453897,-970.77383062,0.000178,2]
[346721422,1735241453912,-970.77383062,0.000178,2]
[346721423,1735241453921,-970.77383062,0.000178,2]
[346721424,1735241453930,-970.77383062,0.000178,2]
[346721425,1735241453940,-970.77383062,0.000178,2]
[346721426,1735241453950,-970.77383062,0.000178,2]
[346721427,1735241453961,-970.77383062,0.000178,2]
[346721428,1735241453970,-970.77,0.000178,2]
[346721429,1735241453979,-214.100556,0.000178,2]
[346721430,1735241453988,-151.0,0.000178,2]
[346721431,1735241453998,-151.0,0.000178,2]
[346721432,1735241454007,-151.0,0.000178,2]
[346721433,1735241454017,-151.0,0.000178,2]
[346721434,1735241454026,-151.0,0.000178,2]
[346721435,1735241454035,-151.0,0.000178,2]
[346721436,1735241454044,-151.0,0.000178,2]
[346721437,1735241454053,-151.0,0.000178,2]
[346721438,1735241454062,-151.0,0.000178,2]
[346721439,1735241454071,-247.795389,0.000178,2]
[346721440,1735241454081,-166.320661,0.000178,2]
[346721441,1735241454090,-166.320661,0.000178,2]
[346721442,1735241454100,-166.320661,0.000178,2]
[346721443,1735241454109,-166.320669,0.000178,2]
[346721444,1735241454118,-151.0,0.000178,2]
[346721445,1735241454127,-448.878934,0.000178,2]
[346721446,1735241454136,-448.878933,0.000178,2]
[346721447,1735241454146,-230.921941,0.000178,2]
[346721448,1735241454155,-230.921946,0.000178,2]
[346721449,1735241454164,-883.346,0.00017804,2]
[346721450,1735241454173,-381.86501385,0.00017826,2]
[346721451,1735241454182,-151.0,0.00017826,2]
[346721452,1735241454191,-151.0,0.00017826,2]
[346721453,1735241454200,-151.0,0.00017826,2]
[346721454,1735241454211,-161.98170315,0.00017888,2]
[346721455,1735241454220,-161559.47930841,0.00017889,7]
[346721456,1735241458603,207.14588522,0.00016792,2]
[346721457,1735241466770,207.69551546,0.00016792,2]
[346721458,1735241679001,500.0,0.00020536,120]
[346721463,1735242359143,-400.0,0.00013695,2]
[346721464,1735242359168,-400.0,0.00013833,2]
[346721465,1735242359190,-400.0,0.00013973,2]
[346721466,1735242359214,-185.57552248,0.00016861,2]
[346721467,1735242359236,-166.50279,0.0001692,2]
[346721468,1735242359257,-151.0,0.00016952,2]
[346721469,1735242359280,-300.0,0.00016959,2]
[346721470,1735242359301,-300.0,0.00016959,2]
[346721471,1735242359322,-500.0,0.0001696,2]
[346721472,1735242359344,-500.0,0.0001696,2]
[346721473,1735242359366,-501.54249789,0.0001696,2]
[346721474,1735242359389,-500.0,0.0001696,2]
[346721475,1735242359412,-500.0,0.0001696,2]
[346721476,1735242359434,-298.60291762,0.0001696,2]
[346721477,1735242429103,-600.0,0.00016621,2]
[346721478,1735242429131,-600.0,0.00016789,2]
[346721479,1735242429160,-300.0,0.00016959,2]
[346721480,1735242429193,-300.0,0.00016959,2]
[346721481,1735242429224,-201.39708238,0.0001696,2]
[346721482,1735242429256,-500.0,0.0001696,2]
[346721483,1735242429281,-500.0,0.0001696,2]
[346721484,1735242429307,-500.0,0.0001696,2]
[346721485,1735242429336,-354.27671386,0.0001696,2]
[346721486,1735242429363,-21.70780296,0.0001696,2]
[346721487,1735242431131,-482.67504452,0.0001696,2]
[346721488,1735242431158,-500.0,0.0001696,2]
[346721489,1735242431186,-500.0,0.0001696,2]
[346721490,1735242431212,-500.0,0.0001696,2]
[346721491,1735242431239,-500.0,0.0001696,2]
[346721492,1735242431270,-500.0,0.0001696,2]
[346721493,1735242431297,-500.0,0.0001696,2]
[346721494,1735242431324,-500.0,0.0001696,2]
[346721495,1735242431351,-500.0,0.0001696,2]
[346721496,1735242431379,-5332.12,0.0001696,2]
[346721497,1735242431406,-552.36,0.0001696,2]
[346721498,1735242431434,-2364.26,0.0001696,2]
[346721499,1735242431462,-500.0,0.0001696,2]
[346721500,1735242431486,-1444.39823167,0.0001696,2]
[346721501,1735242431508,-197.86624621,0.0001696,2]
[346721502,1735242431530,-500.0,0.0001696,2]
[346721503,1735242431696,-500.0,0.0001696,2]
[346721504,1735242431719,-500.0,0.0001696,2]
[346721505,1735242431745,-420.02361576,0.0001696,2]
[346721506,1735242436087,-414.61750266,0.0001679,2]
[346721507,1735242436109,-79.97638424,0.0001696,2]
[346721508,1735242436131,-500.0,0.0001696,2]
[346721509,1735242436152,-501.11177485,0.0001696,2]
[346721510,1735242436174,-500.0,0.0001696,2]
[346721511,1735242436199,-500.0,0.0001696,2]
[346721512,1735242436220,-226.79,0.0001696,2]
[346721513,1735242436243,-500.0,0.0001696,2]
[346721514,1735242436265,-500.0,0.0001696,2]
[346721515,1735242436289,-896.86,0.0001696,2]
[346721516,1735242436311,-500.0,0.0001696,2]
[346721517,1735242436333,-525.59,0.0001696,2]
[346721518,1735242436356,-501.4,0.0001696,2]
[346721519,1735242436377,-240.01083744,0.0001696,2]
[346721520,1735242436400,-170.67835747,0.0001696,2]
[346721521,1735242545104,-941.8386625,0.00015964,2]
[346721522,1735242562104,2597.08,0.00023,120]
[346721523,1735242583480,-211.74112771,0.0001686,2]
[346721524,1735242583507,-162.37858217,0.0001686,2]
[346721525,1735242583535,-500.0,0.00016959,2]
[346721526,1735242583560,-329.32164253,0.0001696,2]
[346721527,1735242583587,-84.88018895,0.0001696,2]
[346721528,1735242583624,-310.47366833,0.0001696,2]
[346721542,1735242632215,-859.49,0.00016959,2]
[346721543,1735242632225,-299.910076,0.00016959,2]
[346721544,1735242632276,-200.089924,0.00016959,2]
[346721545,1735242632286,-104.64614272,0.0001696,2]
[346721546,1735242632295,-500.0,0.0001696,2]
[346721547,1735242632305,-500.0,0.0001696,2]
[346721548,1735242632314,-500.0,0.0001696,2]
[346721550,1735242632323,-500.0,0.0001696,2]
[346721552,1735242632333,-500.0,0.0001696,2]
[346721554,1735242632342,-500.0,0.0001696,2]
[346721556,1735242632351,-500.0,0.0001696,2]
[346721558,1735242632361,-500.0,0.0001696,2]
[346721560,1735242632370,-500.0,0.0001696,2]
[346721563,1735242632379,-500.0,0.0001696,2]
[346721565,1735242632388,-500.0,0.0001696,2]
[346721567,1735242632397,-500.0,0.0001696,2]
[346721569,1735242632406,-500.0,0.0001696,2]
[346721572,1735242632416,-500.0,0.0001696,2]
[346721575,1735242632425,-500.0,0.0001696,2]
[346721578,1735242632434,-500.0,0.0001696,2]
[346721581,1735242632445,-500.0,0.0001696,2]
[346721584,1735242632455,-500.0,0.0001696,2]
[346721587,1735242632465,-500.0,0.0001696,2]
[346721590,1735242632475,-500.0,0.0001696,2]
[346721594,1735242632484,-630.20027777,0.0001696,2]
[346721597,1735242632493,-500.0,0.0001696,2]
[346721599,1735242632502,-500.0,0.0001696,2]
[346721603,1735242632512,-500.0,0.0001696,2]
[346721605,1735242632521,-500.0,0.0001696,2]
[346721609,1735242632531,-500.0,0.0001696,2]
[346721612,1735242632540,-500.0,0.0001696,2]
[346721615,1735242632550,-620.68,0.0001696,2]
[346721618,1735242632560,-500.0,0.0001696,2]
[346721621,1735242632569,-601.51,0.0001696,2]
[346721625,1735242632580,-500.0,0.0001696,2]
[346721627,1735242632589,-500.0,0.0001696,2]
[346721630,1735242632599,-613.48236092,0.0001696,2]
[346721632,1735242632608,-500.0,0.0001696,2]
[346721634,1735242632617,-871.54,0.0001696,2]
[346721636,1735242632627,-685.72,0.0001696,2]
[346721638,1735242632637,-1202.05,0.0001696,2]
[346721640,1735242632647,-500.0,0.0001696,2]
[346721642,1735242632656,-500.0,0.0001696,2]
[346721644,1735242632666,-502.91,0.0001696,2]
[346721646,1735242632675,-500.0,0.0001696,2]
[346721648,1735242632684,-5109.95,0.0001696,2]
[346721650,1735242632696,-500.0,0.0001696,2]
[346721652,1735242632706,-500.0,0.0001696,2]
[346721654,1735242632715,-2265.75,0.0001696,2]
[346721656,1735242632724,-616.83,0.0001696,2]
[346721658,1735242632734,-554.16,0.0001696,2]
[346721660,1735242632743,-500.0,0.0001696,2]
[346721662,1735242632753,-500.0,0.0001696,2]
[346721664,1735242632763,-500.0,0.0001696,2]
[346721666,1735242632773,-500.0,0.0001696,2]
[346721668,1735242632783,-500.0,0.0001696,2]
[346721670,1735242632792,-500.0,0.0001696,2]
[346721672,1735242632802,-500.0,0.0001696,2]
[346721674,1735242632811,-500.0,0.0001696,2]
[346721676,1735242632821,-500.0,0.0001696,2]
[346721677,1735242632830,-501.72158891,0.0001696,2]
[346721678,1735242632839,-204.43481183,0.0001696,2]
[346721679,1735242632848,-500.0,0.0001696,2]
[346721680,1735242632858,-500.0,0.0001696,2]
[346721681,1735242632867,-534.15,0.0001696,2]
[346721682,1735242632876,-561.78,0.0001696,2]
[346721684,1735242632886,-500.0,0.0001696,2]
[346721686,1735242632895,-500.0,0.0001696,2]
[346721688,1735242632904,-500.0,0.0001696,2]
[346721690,1735242632914,-500.0,0.0001696,2]
[346721692,1735242632923,-500.0,0.0001696,2]
[346721694,1735242632933,-500.0,0.0001696,2]
[346721695,1735242632943,-500.0,0.0001696,2]
[346721697,1735242632952,-500.0,0.0001696,2]
[346721698,1735242632962,-500.0,0.0001696,2]
[346721699,1735242632973,-500.0,0.0001696,2]
[346721700,1735242632983,-500.0,0.0001696,2]
[346721701,1735242632994,-883.88,0.0001696,2]
[346721702,1735242633003,-521.84,0.0001696,2]
[346721703,1735242633012,-500.0,0.0001696,2]
[346721704,1735242633022,-500.0,0.0001696,2]
[346721706,1735242633031,-500.0,0.0001696,2]
[346721708,1735242633041,-506.03,0.0001696,2]
[346721709,1735242633050,-589.98,0.0001696,2]
[346721710,1735242633060,-500.0,0.0001696,2]
[346721711,1735242633069,-500.0,0.0001696,2]
[346721712,1735242633079,-500.0,0.0001696,2]
[346721713,1735242633088,-572.19,0.0001696,2]
[346721714,1735242633098,-500.0,0.00016961,2]
[346721715,1735242633107,-500.0,0.00016961,2]
[346721716,1735242633117,-500.0,0.00016961,2]
[346721717,1735242633126,-500.0,0.00016961,2]
[346721718,1735242633136,-500.0,0.00016961,2]
[346721719,1735242633145,-500.0,0.00016961,2]
[346721720,1735242633155,-14391.84,0.00016961,2]
[346721721,1735242633165,-500.0,0.00016961,2]